[Event "1st Rapid Chess Tournament Château Montaiguillon"]
[Site "Montagne - Saint Emilion, France"]
[Date "2019.09.08"]
[Round "9.1"]
[White "Moussard, Jules"]
[Black "Mullon, Jean-Baptiste"]
[Result "1-0"]
[TimeControl "12' + 3''"]
[WhiteElo "2576"]
[BlackElo "2378"]

1. e4 {[%clk 00:12:04]} c5 {[%clk 00:12:03]} {[%emt 00:00:04]} 2. d3 {[%clk
00:12:05]} {[%emt 00:00:02]} Nc6 {[%clk 00:11:56]} {[%emt 00:00:10]} 3. g3
{[%clk 00:12:04]} {[%emt 00:00:04]} g6 {[%clk 00:11:43]} {[%emt 00:00:17]} 4.
Bg2 {[%clk 00:12:06]} {[%emt 00:00:02]} Bg7 {[%clk 00:11:44]} 5. f4 {[%clk
00:12:07]} {[%emt 00:00:01]} d6 {[%clk 00:11:33]} {[%emt 00:00:15]} 6. Nf3
{[%clk 00:12:06]} {[%emt 00:00:04]} e6 {[%clk 00:10:53]} {[%emt 00:00:43]} 7.
O-O {[%clk 00:12:04]} {[%emt 00:00:05]} Nge7 {[%clk 00:10:54]} {[%emt
00:00:01]} 8. c3 {[%clk 00:11:57]} {[%emt 00:00:10]} O-O {[%clk 00:10:50]}
{[%emt 00:00:07]} 9. Be3 {[%clk 00:11:57]} {[%emt 00:00:03]} b6 {[%clk
00:10:44]} {[%emt 00:00:10]} 10. d4 {[%clk 00:11:41]} {[%emt 00:00:18]} cxd4
{[%clk 00:10:31]} {[%emt 00:00:16]} 11. cxd4 {[%clk 00:11:43]} {[%emt
00:00:01]} Na5 {[%clk 00:10:23]} {[%emt 00:00:11]} 12. Qe2 {[%clk 00:10:56]}
{[%emt 00:00:49]} Bb7 {[%clk 00:10:18]} {[%emt 00:00:08]} 13. Nc3 {[%clk
00:10:57]} {[%emt 00:00:02]} Rc8 {[%clk 00:10:15]} {[%emt 00:00:05]} 14. Bf2
{[%clk 00:10:43]} {[%emt 00:00:17]} Rc7 {[%clk 00:08:43]} {[%emt 00:01:35]} 15.
Rac1 {[%clk 00:09:52]} {[%emt 00:00:54]} Qc8 {[%clk 00:08:27]} {[%emt
00:00:20]} 16. Rfe1 {[%clk 00:09:51]} {[%emt 00:00:04]} Ba6 {[%clk 00:08:16]}
{[%emt 00:00:14]} 17. Qc2 {[%clk 00:09:49]} {[%emt 00:00:05]} b5 {[%clk
00:06:48]} {[%emt 00:01:32]} 18. Qb1 {[%clk 00:08:28]} {[%emt 00:01:23]} b4
{[%clk 00:06:46]} {[%emt 00:00:05]} 19. Na4 {[%clk 00:08:06]} {[%emt 00:00:25]}
Bb5 {[%clk 00:06:39]} {[%emt 00:00:11]} 20. b3 {[%clk 00:08:04]} {[%emt
00:00:05]} Rxc1 {[%clk 00:05:27]} {[%emt 00:01:15]} 21. Rxc1 {[%clk 00:08:05]}
{[%emt 00:00:01]} Qd7 {[%clk 00:05:30]} 22. e5 {[%clk 00:07:35]} {[%emt
00:00:32]} Bxa4 {[%clk 00:04:41]} {[%emt 00:00:52]} 23. bxa4 {[%clk 00:07:37]}
{[%emt 00:00:01]} Nd5 {[%clk 00:04:42]} 24. Qc2 {[%clk 00:06:41]} {[%emt
00:00:58]} Nb6 {[%clk 00:03:35]} {[%emt 00:01:11]} 25. Qb2 {[%clk 00:04:18]}
{[%emt 00:02:26]} dxe5 {[%clk 00:03:12]} {[%emt 00:00:25]} 26. Nxe5 {[%clk
00:04:14]} {[%emt 00:00:07]} Qxa4 {[%clk 00:03:07]} {[%emt 00:00:09]} 27. Rc7
{[%clk 00:04:08]} {[%emt 00:00:09]} Bxe5 {[%clk 00:01:54]} {[%emt 00:01:16]} 28.
dxe5 {[%clk 00:04:06]} {[%emt 00:00:05]} Qd1+ {[%clk 00:01:54]} {[%emt
00:00:03]} 29. Bf1 {[%clk 00:04:08]} {[%emt 00:00:01]} Nac4 {[%clk 00:01:41]}
{[%emt 00:00:16]} 30. Qe2 {[%clk 00:04:05]} {[%emt 00:00:07]} Qxe2 {[%clk
00:01:04]} {[%emt 00:00:40]} 31. Bxe2 {[%clk 00:04:06]} {[%emt 00:00:01]} Nb2
{[%clk 00:00:50]} {[%emt 00:00:18]} 32. Bd4 {[%clk 00:03:02]} {[%emt 00:01:08]}
Rd8 {[%clk 00:00:31]} {[%emt 00:00:22]} 33. Bc5 {[%clk 00:02:43]} {[%emt
00:00:22]} Nd5 {[%clk 00:00:21]} {[%emt 00:00:13]} 34. Rxa7 {[%clk 00:02:41]}
{[%emt 00:00:05]} h6 {[%clk 00:00:13]} {[%emt 00:00:11]} 35. h4 {[%clk
00:02:34]} {[%emt 00:00:10]} Nc3 {[%clk 00:00:13]} {[%emt 00:00:03]} 36. Bf3
{[%clk 00:02:28]} {[%emt 00:00:09]} Rd3 {[%clk 00:00:14]} {[%emt 00:00:02]} 37.
Ra8+ {[%clk 00:02:17]} {[%emt 00:00:14]} Kg7 {[%clk 00:00:16]} {[%emt
00:00:01]} 38. Be7 {[%clk 00:02:17]} {[%emt 00:00:03]} g5 {[%clk 00:00:13]}
{[%emt 00:00:05]} 39. h5 {[%emt 00:00:20]} f5 40. exf6+ {[%clk 00:02:01]}
{[%emt 00:00:02]} Kf7 {[%clk 00:00:19]} 41. Rf8# {[%clk 00:02:02]} {[%emt
00:00:01]} 1-0

[Event "1st Rapid Chess Tournament Château Montaiguillon"]
[Site "Montagne - Saint Emilion, France"]
[Date "2019.09.08"]
[Round "9.2"]
[White "Fressinet, Laurent"]
[Black "Sochacki, Christophe"]
[Result "0-1"]
[TimeControl "12' + 3''"]
[WhiteElo "2625"]
[BlackElo "2481"]

1. d4 {[%clk 00:12:03]} {[%emt 00:00:01]} Nc6 {[%clk 00:12:05]} {[%emt
00:00:03]} 2. d5 {[%clk 00:11:51]} {[%emt 00:00:16]} Ne5 {[%clk 00:12:06]} 3.
e4 {[%clk 00:11:52]} {[%emt 00:00:02]} e6 {[%clk 00:12:08]} {[%emt 00:00:02]} 4.
f4 {[%clk 00:11:14]} {[%emt 00:00:41]} exd5 {[%clk 00:12:10]} {[%emt 00:00:02]}
5. Qxd5 {[%clk 00:10:12]} {[%emt 00:01:05]} Nc6 {[%clk 00:12:11]} {[%emt
00:00:01]} 6. Nc3 {[%clk 00:09:45]} {[%emt 00:00:29]} Nf6 {[%clk 00:12:13]}
{[%emt 00:00:02]} 7. Qd3 {[%clk 00:08:39]} {[%emt 00:01:08]} d5 {[%clk
00:10:29]} {[%emt 00:01:47]} 8. e5 {[%clk 00:08:19]} {[%emt 00:00:23]} Nb4
{[%clk 00:10:24]} {[%emt 00:00:09]} 9. Qe2 {[%clk 00:07:17]} {[%emt 00:01:04]}
Bg4 {[%clk 00:10:24]} {[%emt 00:00:04]} 10. Nf3 {[%clk 00:07:08]} {[%emt
00:00:12]} Ne4 {[%clk 00:10:19]} {[%emt 00:00:08]} 11. Nxe4 {[%clk 00:05:26]}
{[%emt 00:01:45]} dxe4 {[%clk 00:10:21]} {[%emt 00:00:02]} 12. Qxe4 {[%clk
00:05:27]} {[%emt 00:00:01]} Bxf3 {[%clk 00:09:46]} {[%emt 00:00:37]} 13. gxf3
{[%clk 00:05:18]} {[%emt 00:00:12]} Qh4+ {[%clk 00:09:44]} {[%emt 00:00:05]} 14.
Ke2 {[%clk 00:05:19]} {[%emt 00:00:02]} O-O-O {[%clk 00:08:56]} {[%emt
00:00:51]} 15. Be3 {[%clk 00:05:08]} {[%emt 00:00:14]} g6 {[%clk 00:07:42]}
{[%emt 00:01:17]} 16. a3 {[%clk 00:03:30]} {[%emt 00:01:41]} Nd5 {[%clk
00:07:40]} {[%emt 00:00:05]} 17. Rd1 {[%clk 00:03:23]} {[%emt 00:00:09]} c6
{[%clk 00:06:19]} {[%emt 00:01:24]} 18. f5 {[%clk 00:02:38]} {[%emt 00:00:48]}
Qh5 {[%clk 00:05:41]} {[%emt 00:00:41]} 19. fxg6 {[%clk 00:01:39]} {[%emt
00:01:02]} Bh6 {[%clk 00:03:35]} {[%emt 00:02:09]} 20. Bxh6 {[%clk 00:01:12]}
{[%emt 00:00:30]} Qxh6 {[%clk 00:03:37]} {[%emt 00:00:01]} 21. Kf2 {[%clk
00:00:57]} {[%emt 00:00:18]} hxg6 {[%clk 00:03:33]} {[%emt 00:00:07]} 22. h4
{[%clk 00:00:23]} {[%emt 00:00:37]} Nf4 {[%clk 00:03:04]} {[%emt 00:00:32]} 23.
Rxd8+ {[%clk 00:00:20]} {[%emt 00:00:06]} Rxd8 {[%clk 00:03:06]} 24. Bd3 {[%clk
00:00:22]} Kc7 {[%clk 00:02:10]} {[%emt 00:01:00]} 25. Kg3 {[%clk 00:00:14]}
{[%emt 00:00:11]} g5 {[%clk 00:02:12]} {[%emt 00:00:01]} 26. h5 {[%clk
00:00:08]} {[%emt 00:00:09]} Re8 {[%clk 00:01:28]} {[%emt 00:00:47]} 27. Qf5
{[%clk 00:00:08]} {[%emt 00:00:02]} Kb6 {[%clk 00:01:09]} {[%emt 00:00:22]} 28.
Kf2 {[%clk 00:00:08]} {[%emt 00:00:02]} Qh8 {[%clk 00:01:05]} {[%emt 00:00:08]}
29. h6 {[%clk 00:00:06]} {[%emt 00:00:06]} Rxe5 {[%clk 00:01:05]} {[%emt
00:00:03]} 30. Qxf7 {[%clk 00:00:08]} Rd5 {[%clk 00:00:39]} {[%emt 00:00:30]}
31. Qg7 {[%clk 00:00:10]} Qe8 {[%clk 00:00:37]} {[%emt 00:00:04]} 32. h7 {[%clk
00:00:12]} Rxd3 {[%clk 00:00:40]} {[%emt 00:00:01]} 33. Re1 {[%clk 00:00:07]}
{[%emt 00:00:07]} Nh3+ {[%clk 00:00:36]} {[%emt 00:00:07]} 34. Kg2 {[%clk
00:00:05]} {[%emt 00:00:05]} Qxe1 {[%clk 00:00:37]} {[%emt 00:00:02]} 35. cxd3
{[%clk 00:00:04]} {[%emt 00:00:04]} Nf4+ {[%clk 00:00:38]} {[%emt 00:00:02]}
0-1

[Event "1st Rapid Chess Tournament Château Montaiguillon"]
[Site "Montagne - Saint Emilion, France"]
[Date "2019.09.08"]
[Round "9.3"]
[White "Lagarde, Maxime"]
[Black "Cornette, Matthieu"]
[Result "1-0"]
[TimeControl "12' + 3''"]
[WhiteElo "2599"]
[BlackElo "2548"]

1. e4 {[%clk 00:12:05]} c5 {[%clk 00:12:05]} {[%emt 00:00:02]} 2. Nc3 {[%clk
00:12:06]} {[%emt 00:00:02]} Nc6 {[%clk 00:12:04]} {[%emt 00:00:04]} 3. Nf3
{[%clk 00:12:07]} e5 {[%clk 00:12:06]} {[%emt 00:00:02]} 4. Bc4 {[%clk
00:12:09]} {[%emt 00:00:03]} Be7 {[%clk 00:12:08]} 5. d3 {[%clk 00:12:10]}
{[%emt 00:00:01]} d6 {[%clk 00:12:09]} {[%emt 00:00:01]} 6. Nd2 {[%clk
00:12:11]} {[%emt 00:00:02]} Nf6 {[%clk 00:12:06]} {[%emt 00:00:07]} 7. Nf1
{[%clk 00:12:13]} {[%emt 00:00:02]} Bg4 {[%clk 00:12:07]} 8. f3 {[%clk
00:12:12]} {[%emt 00:00:03]} Be6 {[%clk 00:12:08]} {[%emt 00:00:02]} 9. Ne3
{[%clk 00:12:14]} {[%emt 00:00:01]} O-O {[%clk 00:12:02]} {[%emt 00:00:10]} 10.
O-O {[%clk 00:12:15]} {[%emt 00:00:03]} Nd7 {[%clk 00:12:03]} {[%emt 00:00:01]}
11. a4 {[%clk 00:12:02]} {[%emt 00:00:15]} Bg5 {[%clk 00:11:39]} {[%emt
00:00:28]} 12. g3 {[%clk 00:11:40]} {[%emt 00:00:25]} Nb6 {[%clk 00:11:01]}
{[%emt 00:00:40]} 13. f4 {[%clk 00:11:02]} {[%emt 00:00:41]} exf4 {[%clk
00:10:36]} {[%emt 00:00:29]} 14. gxf4 {[%clk 00:11:03]} {[%emt 00:00:01]} Bf6
{[%clk 00:10:17]} {[%emt 00:00:23]} 15. Ncd5 {[%clk 00:10:16]} {[%emt
00:00:50]} Bxd5 {[%clk 00:08:13]} {[%emt 00:02:07]} 16. Nxd5 {[%clk 00:10:15]}
{[%emt 00:00:04]} Nxd5 {[%clk 00:08:04]} {[%emt 00:00:12]} 17. Bxd5 {[%clk
00:10:16]} {[%emt 00:00:02]} Qd7 {[%clk 00:08:04]} {[%emt 00:00:03]} 18. c3
{[%clk 00:10:05]} {[%emt 00:00:14]} Ne7 {[%clk 00:07:59]} {[%emt 00:00:08]} 19.
Bb3 {[%clk 00:10:03]} {[%emt 00:00:04]} g6 {[%clk 00:07:28]} {[%emt 00:00:34]}
20. f5 {[%clk 00:09:44]} {[%emt 00:00:22]} Kg7 {[%clk 00:06:42]} {[%emt
00:00:49]} 21. Qf3 {[%clk 00:09:04]} {[%emt 00:00:43]} gxf5 {[%clk 00:05:49]}
{[%emt 00:00:57]} 22. Kh1 {[%clk 00:09:04]} {[%emt 00:00:03]} Kh8 {[%clk
00:03:21]} {[%emt 00:02:31]} 23. Bh6 {[%clk 00:09:04]} {[%emt 00:00:02]} Be5
{[%clk 00:02:27]} {[%emt 00:00:57]} 24. exf5 {[%clk 00:08:38]} {[%emt
00:00:30]} 1-0

[Event "1st Rapid Chess Tournament Château Montaiguillon"]
[Site "Montagne - Saint Emilion, France"]
[Date "2019.09.08"]
[Round "9.5"]
[White "Favarel, Julien"]
[Black "Fritschy, Frits"]
[Result "1-0"]
[TimeControl "12' + 3''"]
[WhiteElo "2331"]
[BlackElo "2094"]

1. e4 {[%clk 00:12:03]} {[%emt 00:00:04]} e6 {[%clk 00:12:05]} 2. d4 {[%clk
00:12:05]} {[%emt 00:00:02]} d5 {[%clk 00:12:07]} 3. exd5 {[%clk 00:12:07]}
{[%emt 00:00:01]} exd5 {[%clk 00:12:09]} 4. Nf3 {[%clk 00:12:09]} {[%emt
00:00:02]} Bd6 {[%clk 00:11:54]} {[%emt 00:00:18]} 5. c4 {[%clk 00:12:11]}
{[%emt 00:00:02]} dxc4 {[%clk 00:11:35]} {[%emt 00:00:21]} 6. Bxc4 {[%clk
00:12:12]} {[%emt 00:00:02]} Ne7 {[%clk 00:11:29]} {[%emt 00:00:09]} 7. Ng5
{[%clk 00:11:58]} {[%emt 00:00:17]} Bb4+ {[%clk 00:11:02]} {[%emt 00:00:30]} 8.
Nc3 {[%clk 00:11:56]} {[%emt 00:00:04]} Nd5 {[%clk 00:10:41]} {[%emt 00:00:25]}
9. Qe2+ {[%clk 00:11:27]} {[%emt 00:00:31]} Kf8 {[%clk 00:10:05]} {[%emt
00:00:39]} 10. O-O {[%clk 00:11:07]} {[%emt 00:00:22]} c6 {[%clk 00:09:50]}
{[%emt 00:00:20]} 11. Qh5 {[%clk 00:10:07]} {[%emt 00:01:02]} Qd7 {[%clk
00:09:09]} {[%emt 00:00:45]} 12. Bd2 {[%clk 00:09:21]} {[%emt 00:00:49]} Bxc3
{[%clk 00:08:41]} {[%emt 00:00:31]} 13. bxc3 {[%clk 00:08:48]} {[%emt
00:00:37]} h6 {[%clk 00:08:02]} {[%emt 00:00:41]} 14. Rae1 {[%clk 00:08:11]}
{[%emt 00:00:39]} g6 {[%clk 00:07:51]} {[%emt 00:00:15]} 15. Qh4 {[%clk
00:07:36]} {[%emt 00:00:37]} Qg4 {[%clk 00:07:43]} {[%emt 00:00:11]} 16. Qxg4
{[%clk 00:06:35]} {[%emt 00:01:04]} Bxg4 {[%clk 00:07:43]} {[%emt 00:00:02]} 17.
Ne4 {[%clk 00:06:34]} {[%emt 00:00:05]} Nd7 {[%clk 00:07:13]} {[%emt 00:00:33]}
18. Nd6 {[%clk 00:06:29]} {[%emt 00:00:07]} Be6 {[%clk 00:05:30]} {[%emt
00:01:46]} 19. Bb3 {[%clk 00:05:00]} {[%emt 00:01:33]} b5 {[%clk 00:05:13]}
{[%emt 00:00:21]} 20. f4 {[%clk 00:04:04]} {[%emt 00:00:58]} Ke7 {[%clk
00:04:51]} {[%emt 00:00:25]} 21. Ne4 {[%clk 00:04:03]} {[%emt 00:00:05]} Kf8
{[%clk 00:04:28]} {[%emt 00:00:26]} 22. Ng3 {[%clk 00:03:54]} {[%emt 00:00:11]}
Re8 {[%clk 00:04:03]} {[%emt 00:00:28]} 23. f5 {[%clk 00:03:41]} {[%emt
00:00:17]} gxf5 {[%clk 00:03:56]} {[%emt 00:00:11]} 24. Nxf5 {[%clk 00:03:41]}
{[%emt 00:00:03]} Bxf5 {[%clk 00:03:56]} {[%emt 00:00:03]} 25. Rxe8+ {[%clk
00:03:43]} {[%emt 00:00:01]} Kxe8 {[%clk 00:03:58]} 26. Rxf5 {[%clk 00:03:44]}
{[%emt 00:00:02]} N7b6 {[%clk 00:03:50]} {[%emt 00:00:11]} 27. Rh5 {[%clk
00:03:26]} {[%emt 00:00:19]} Nf6 {[%clk 00:03:50]} {[%emt 00:00:04]} 28. Rxh6
{[%clk 00:03:16]} {[%emt 00:00:13]} Rxh6 {[%clk 00:03:52]} {[%emt 00:00:01]} 29.
Bxh6 {[%clk 00:03:19]} Ne4 {[%clk 00:03:54]} {[%emt 00:00:01]} 30. h4 {[%clk
00:03:05]} {[%emt 00:00:17]} Ke7 {[%clk 00:03:43]} {[%emt 00:00:14]} 31. Bg7
{[%clk 00:02:46]} {[%emt 00:00:21]} Ng3 {[%clk 00:03:27]} {[%emt 00:00:20]} 32.
Be5 {[%clk 00:02:36]} {[%emt 00:00:12]} Ne2+ {[%clk 00:03:20]} {[%emt
00:00:10]} 33. Kf1 {[%clk 00:02:34]} {[%emt 00:00:04]} Nxc3 {[%clk 00:03:21]}
{[%emt 00:00:03]} 34. h5 {[%clk 00:02:35]} {[%emt 00:00:03]} Ncd5 {[%clk
00:03:03]} {[%emt 00:00:20]} 35. h6 {[%clk 00:02:33]} {[%emt 00:00:04]} Nf6
{[%clk 00:03:04]} {[%emt 00:00:02]} 36. g4 {[%clk 00:02:22]} {[%emt 00:00:15]}
Nbd5 {[%clk 00:02:54]} {[%emt 00:00:14]} 37. Ke2 {[%clk 00:01:30]} {[%emt
00:00:54]} Nh7 {[%clk 00:02:40]} {[%emt 00:00:16]} 38. Bc2 {[%clk 00:01:23]}
{[%emt 00:00:09]} f6 {[%clk 00:02:34]} {[%emt 00:00:10]} 39. Bb8 {[%clk
00:01:09]} {[%emt 00:00:18]} Ng5 {[%emt 00:00:45]} 40. h7 {[%emt 00:00:01]} Nf7
41. Bxa7 {[%emt 00:00:06]} Nc3+ 42. Kd2 {[%emt 00:00:07]} Nxa2 43. Bc5+ {[%emt
00:00:07]} Ke6 44. Bg6 {[%emt 00:00:02]} Ke7 45. Bc2+ {[%emt 00:00:02]} Ke8
{[%emt 00:00:16]} 1-0